fUST/lending_fUST_20250119
["ID","MTS","AMOUNT","RATE_DAILY","PERIOD"]
[349497396,1737222647180,-500.0,0.00022463,2]
[349497397,1737222647189,-500.0,0.00022463,2]
[349497398,1737222647199,-500.0,0.00022463,2]
[349497399,1737222647209,-500.0,0.00022463,2]
[349497400,1737222647218,-500.0,0.00022463,2]
[349497401,1737222647228,-500.0,0.00022463,2]
[349497402,1737222647238,-500.0,0.00022463,2]
[349497403,1737222647247,-500.0,0.00022463,2]
[349497404,1737222647259,-500.0,0.00022463,2]
[349497405,1737222647268,-500.0,0.00022463,2]
[349497406,1737222647278,-500.0,0.00022463,2]
[349497407,1737222647287,-500.0,0.00022463,2]
[349497408,1737222647296,-500.0,0.00022463,2]
[349497409,1737222647306,-500.0,0.00022463,2]
[349497410,1737222647315,-500.0,0.00022463,2]
[349497411,1737222647325,-500.0,0.00022463,2]
[349497412,1737222647334,-500.0,0.00022463,2]
[349497413,1737222647344,-500.0,0.00022463,2]
[349497414,1737222647353,-500.0,0.00022463,2]
[349497415,1737222647362,-500.0,0.00022463,2]
[349497416,1737222647371,-500.0,0.00022463,2]
[349497417,1737222647380,-500.0,0.00022463,2]
[349497418,1737222647389,-500.0,0.00022463,2]
[349497419,1737222647398,-500.0,0.00022463,2]
[349497420,1737222647407,-500.0,0.00022463,2]
[349497421,1737222647416,-500.0,0.00022463,2]
[349497422,1737222647425,-500.0,0.00022463,2]
[349497423,1737222647434,-500.0,0.00022463,2]
[349497424,1737222647443,-500.0,0.00022463,2]
[349497425,1737222647451,-500.0,0.00022463,2]
[349497426,1737222647460,-500.0,0.00022463,2]
[349497427,1737222647469,-500.0,0.00022463,2]
[349497428,1737222647478,-500.0,0.00022463,2]
[349497429,1737222647487,-500.0,0.00022463,2]
[349497430,1737222647496,-500.0,0.00022463,2]
[349497431,1737222647507,-500.0,0.00022463,2]
[349497432,1737222647516,-500.0,0.00022463,2]
[349497433,1737222647525,-500.0,0.00022463,2]
[349497434,1737222647535,-500.0,0.00022463,2]
[349497435,1737222647544,-500.0,0.00022463,2]
[349497436,1737222647553,-500.0,0.00022463,2]
[349497437,1737222647562,-500.0,0.00022463,2]
[349497438,1737222647573,-500.0,0.00022463,2]
[349497439,1737222647584,-500.0,0.00022463,2]
[349497440,1737222647593,-500.0,0.00022463,2]
[349497441,1737222647602,-500.0,0.00022463,2]
[349497442,1737222647611,-500.0,0.00022463,2]
[349497443,1737222647622,-500.0,0.00022463,2]
[349497444,1737222647631,-500.0,0.00022463,2]
[349497445,1737222647640,-500.0,0.00022463,2]
[349497446,1737222647650,-500.0,0.00022463,2]
[349497447,1737222647660,-500.0,0.00022463,2]
[349497448,1737222647670,-500.0,0.00022463,2]
[349497449,1737222647680,-500.0,0.00022463,2]
[349497450,1737222647689,-500.0,0.00022463,2]
[349497451,1737222647698,-500.0,0.00022463,2]
[349497452,1737222647707,-534.96311826,0.00022463,2]
[349497453,1737222647716,-500.0,0.00022463,2]
[349497454,1737222647726,-500.0,0.00022463,2]
[349497455,1737222647735,-500.0,0.00022463,2]
[349497456,1737222647745,-500.0,0.00022463,2]
[349497457,1737222647759,-500.0,0.00022463,2]
[349497458,1737222647768,-500.0,0.00022463,2]
[349497459,1737222647777,-500.0,0.00022463,2]
[349497460,1737222647786,-500.0,0.00022463,2]
[349497461,1737222647795,-500.0,0.00022463,2]
[349497462,1737222647805,-500.0,0.00022463,2]
[349497463,1737222647814,-500.0,0.00022463,2]
[349497464,1737222647824,-500.0,0.00022463,2]
[349497465,1737222647835,-500.0,0.00022463,2]
[349497466,1737222647846,-500.0,0.00022463,2]
[349497467,1737222647855,-500.0,0.00022463,2]
[349497468,1737222647864,-500.0,0.00022463,2]
[349497469,1737222647873,-500.0,0.00022463,2]
[349497470,1737222647882,-500.0,0.00022463,2]
[349497471,1737222647892,-500.0,0.00022463,2]
[349497472,1737222647902,-500.0,0.00022463,2]
[349497473,1737222647911,-500.0,0.00022463,2]
[349497474,1737222647920,-500.0,0.00022463,2]
[349497475,1737222647930,-500.0,0.00022463,2]
[349497476,1737222647939,-500.0,0.00022463,2]
[349497477,1737222647948,-500.0,0.00022463,2]
[349497478,1737222647957,-500.0,0.00022463,2]
[349497479,1737222647967,-500.0,0.00022463,2]
[349497480,1737222647976,-500.0,0.00022463,2]
[349497481,1737222647985,-500.0,0.00022463,2]
[349497482,1737222647995,-500.0,0.00022463,2]
[349497483,1737222648007,-500.0,0.00022463,2]
[349497484,1737222648017,-299.88489527,0.00022463,2]
[349497485,1737222648026,-500.0,0.00022463,2]
[349497486,1737222648036,-500.0,0.00022463,2]
[349497487,1737222648045,-500.0,0.00022463,2]
[349497488,1737222648056,-500.0,0.00022463,2]
[349497489,1737222648066,-500.0,0.00022463,2]
[349497490,1737222648076,-500.0,0.00022463,2]
[349497491,1737222648086,-500.0,0.00022463,2]
[349497492,1737222648096,-500.0,0.00022463,2]
[349497493,1737222648106,-500.0,0.00022463,2]
[349497494,1737222648116,-500.0,0.00022463,2]
[349497495,1737222648126,-500.0,0.00022463,2]
[349497496,1737222648135,-500.0,0.00022463,2]
[349497497,1737222648145,-500.0,0.00022463,2]
[349497498,1737222648155,-500.0,0.00022463,2]
[349497499,1737222648164,-500.0,0.00022463,2]
[349497500,1737222648173,-500.0,0.00022463,2]
[349497501,1737222648183,-500.0,0.00022463,2]
[349497502,1737222648192,-500.0,0.00022463,2]
[349497503,1737222648201,-500.0,0.00022463,2]
[349497504,1737222648210,-375.92453787,0.00022463,2]
[349497505,1737222648219,-500.0,0.00022463,2]
[349497506,1737222648228,-500.0,0.00022463,2]
[349497507,1737222648238,-500.0,0.00022463,2]
[349497508,1737222648247,-500.0,0.00022463,2]
[349497509,1737222648259,-500.0,0.00022463,2]
[349497510,1737222648268,-500.0,0.00022463,2]
[349497511,1737222648278,-500.0,0.00022463,2]
[349497512,1737222648287,-500.0,0.00022463,2]
[349497513,1737222648296,-500.0,0.00022463,2]
[349497514,1737222648307,-500.0,0.00022463,2]
[349497515,1737222648316,-500.0,0.00022463,2]
[349497516,1737222648326,-500.0,0.00022463,2]
[349497517,1737222648335,-500.0,0.00022463,2]
[349497518,1737222648345,-500.0,0.00022463,2]
[349497519,1737222648355,-500.0,0.00022463,2]
[349497520,1737222648364,-500.0,0.00022463,2]
[349497521,1737222648374,-500.0,0.00022463,2]
[349497522,1737222648383,-500.0,0.00022463,2]
[349497523,1737222648393,-500.0,0.00022463,2]
[349497524,1737222648402,-500.0,0.00022463,2]
[349497525,1737222648411,-500.0,0.00022463,2]
[349497526,1737222648421,-500.0,0.00022465,3]
[349497527,1737222648430,-500.0,0.00022465,3]
[349497528,1737222648440,-500.0,0.00022465,3]
[349497529,1737222648449,-500.0,0.00022465,3]
[349497530,1737222648459,-500.0,0.00022465,3]
[349497531,1737222648469,-500.0,0.00022465,3]
[349497532,1737222648478,-500.0,0.00022465,3]
[349497533,1737222648487,-500.0,0.00022465,2]
[349497534,1737222648497,-9507.15,0.00022465,3]
[349497535,1737222648510,-500.0,0.00022465,3]
[349497536,1737222648519,-500.0,0.00022465,3]
[349497537,1737222648529,-500.0,0.00022465,3]
[349497538,1737222648539,-580.74,0.00022465,3]
[349497539,1737222648548,-500.0,0.00022465,3]
[349497540,1737222648558,-615.85,0.00022465,3]
[349497541,1737222648567,-500.0,0.00022465,3]
[349497542,1737222648583,-608.53878376,0.00022465,3]
[349497543,1737222648592,-500.0,0.00022465,3]
[349497544,1737222648602,-500.0,0.00022465,3]
[349497545,1737222648612,-500.0,0.00022465,3]
[349497546,1737222648622,-500.0,0.00022465,3]
[349497547,1737222648632,-500.0,0.00022465,3]
[349497548,1737222648641,-710.64,0.00022465,3]
[349497549,1737222648651,-500.0,0.00022465,3]
[349497550,1737222648661,-500.0,0.00022465,3]
[349497551,1737222648671,-2631.26,0.00022465,3]
[349497552,1737222648680,-5728.57,0.00022465,3]
[349497553,1737222648689,-500.0,0.00022465,3]
[349497554,1737222648698,-500.0,0.00022465,3]
[349497555,1737222648708,-500.0,0.00022465,3]
[349497556,1737222648717,-494.3,0.00022465,3]
[349497557,1737222648726,-500.0,0.00022465,3]
[349497558,1737222648736,-500.0,0.00022465,3]
[349497559,1737222648746,-500.0,0.00022465,3]
[349497560,1737222648758,-1649.57,0.00022465,3]
[349497561,1737222648768,-500.0,0.00022465,3]
[349497562,1737222648778,-510.28,0.00022465,3]
[349497563,1737222648787,-795.62,0.00022465,3]
[349497564,1737222648797,-500.0,0.00022465,3]
[349497565,1737222648806,-166.57856237,0.00022513,2]
[349497566,1737222648816,-500.0,0.00022548,2]
[349497567,1737222648825,-501.61105771,0.00022548,2]
[349497568,1737222648835,-467.42813428,0.00022548,2]
[349497569,1737222648845,-500.0,0.00022548,2]
[349497570,1737222648938,-400.68341451,0.00022548,2]
[349497571,1737222648948,-160.47512571,0.00022548,2]
[349497572,1737222648959,-368.01741279,0.00022548,2]
[349497573,1737222648968,-169.0,0.00022548,2]
[349497574,1737222648978,-218.47720481,0.00022548,2]
[349497575,1737222648988,-500.0,0.0002255,2]
[349497576,1737222648998,-500.0,0.00022601,2]
[349497577,1737222649010,-500.0,0.00022602,3]
[349497578,1737222649020,-500.0,0.00022602,3]
[349497579,1737222649029,-500.0,0.00022602,3]
[349497580,1737222649039,-500.0,0.00022602,3]
[349497581,1737222649048,-500.0,0.00022602,3]
[349497582,1737222649058,-500.0,0.00022602,3]
[349497583,1737222649068,-500.0,0.00022602,3]
[349497584,1737222649077,-500.0,0.00022602,2]
[349497585,1737222649087,-9507.15,0.00022602,3]
[349497586,1737222649096,-500.0,0.00022602,3]
[349497587,1737222649105,-500.0,0.00022602,3]
[349497588,1737222649115,-500.0,0.00022602,3]
[349497589,1737222649125,-580.74,0.00022602,3]
[349497590,1737222649134,-500.0,0.00022602,3]
[349497591,1737222649143,-615.85,0.00022602,3]
[349497592,1737222649153,-500.0,0.00022602,3]
[349497593,1737222649162,-500.0,0.00022602,3]
[349497594,1737222649171,-500.0,0.00022602,3]
[349497595,1737222649180,-463.87,0.00022602,3]
[349497596,1737222649190,-500.0,0.00022602,3]
[349497597,1737222649200,-500.0,0.00022602,3]
[349497598,1737222649209,-710.64,0.00022602,3]
[349497599,1737222649219,-500.0,0.00022602,3]
[349497600,1737222649228,-500.0,0.00022602,3]
[349497601,1737222649238,-2631.26,0.00022602,3]
[349497602,1737222649248,-5728.57,0.00022602,3]
[349497603,1737222649260,-500.0,0.00022602,3]
[349497604,1737222649269,-500.0,0.00022602,3]
[349497605,1737222649279,-500.0,0.00022602,3]
[349497606,1737222649288,-500.0,0.00022602,3]
[349497607,1737222649298,-576.61,0.00022602,3]
[349497608,1737222649308,-500.0,0.00022602,3]
[349497609,1737222649317,-1649.57,0.00022602,3]
[349497610,1737222649326,-500.0,0.00022602,3]
[349497611,1737222649336,-510.28,0.00022602,3]
[349497612,1737222649345,-795.62,0.00022602,3]
[349497613,1737222649355,-500.0,0.00022602,3]
[349497614,1737222649364,-500.0,0.00022673,2]
[349497615,1737222649374,-500.0,0.00022673,2]
[349497616,1737222649383,-500.0,0.00022673,2]
[349497617,1737222649393,-500.0,0.00022673,2]
[349497618,1737222649403,-500.54654682,0.00022673,2]
[349497619,1737222649413,-500.74533802,0.00022673,2]
[349497620,1737222649423,-500.0,0.00022739,3]
[349497621,1737222649433,-500.0,0.00022739,3]
[349497622,1737222649442,-299.18,0.00022739,3]
[349497623,1737222649452,-500.0,0.00022739,3]
[349497624,1737222649461,-564.31561625,0.00022739,3]
[349497625,1737222649471,-500.0,0.00022739,3]
[349497626,1737222649480,-500.0,0.00022739,3]
[349497627,1737222649489,-500.0,0.00022739,2]
[349497628,1737222649499,-9507.15,0.00022739,3]
[349497629,1737222649511,-396.93021224,0.00022739,3]
[349497630,1737222649520,-500.0,0.00022739,3]
[349497631,1737222649530,-500.0,0.00022739,3]
[349497632,1737222649539,-580.74,0.00022739,3]
[349497633,1737222649549,-500.0,0.00022739,3]
[349497634,1737222649559,-615.85,0.00022739,3]
[349497635,1737222649568,-500.0,0.00022739,3]
[349497636,1737222649579,-500.0,0.00022739,3]
[349497637,1737222649588,-500.0,0.00022739,3]
[349497638,1737222649598,-500.0,0.00022739,3]
[349497639,1737222649608,-500.0,0.00022739,3]
[349497640,1737222649618,-710.64,0.00022739,3]
[349497641,1737222649628,-500.0,0.00022739,3]
[349497642,1737222649638,-500.0,0.00022739,3]
[349497643,1737222649648,-2631.26,0.00022739,3]
[349497644,1737222649659,-5728.57,0.00022739,3]
[349497645,1737222649668,-500.0,0.00022739,3]
[349497646,1737222649678,-500.0,0.00022739,3]
[349497647,1737222649687,-376.48,0.00022739,3]
[349497648,1737222649696,-500.0,0.00022739,3]
[349497649,1737222649706,-500.0,0.00022739,3]
[349497650,1737222649715,-1649.57,0.00022739,3]
[349497651,1737222649725,-500.0,0.00022739,3]
[349497652,1737222649734,-510.28,0.00022739,3]
[349497653,1737222649743,-795.62,0.00022739,3]
[349497654,1737222649752,-500.0,0.00022739,3]
[349497655,1737222649768,-272.29530938,0.00022775,2]
[349497656,1737222649778,-446.409,0.000228,2]
[349497657,1737222649788,-166.57856237,0.00022862,2]
[349497658,1737222649797,-251.10089104,0.00022875,2]
[349497659,1737222649806,-500.0,0.00022876,3]
[349497660,1737222649815,-172.4,0.00022876,3]
[349497661,1737222649825,-500.0,0.00022876,3]
[349497662,1737222649834,-304.28,0.00022876,3]
[349497663,1737222649843,-500.0,0.00022876,3]
[349497664,1737222649852,-500.0,0.00022876,2]
[349497665,1737222649862,-9507.15,0.00022876,3]
[349497666,1737222649872,-500.0,0.00022876,3]
[349497667,1737222649881,-500.0,0.00022876,3]
[349497668,1737222649891,-580.74,0.00022876,3]
[349497669,1737222649900,-500.0,0.00022876,3]
[349497670,1737222649910,-615.85,0.00022876,3]
[349497671,1737222649919,-500.0,0.00022876,3]
[349497672,1737222649929,-500.0,0.00022876,3]
[349497673,1737222649938,-500.0,0.00022876,3]
[349497674,1737222649948,-500.0,0.00022876,3]
[349497675,1737222649958,-500.0,0.00022876,3]
[349497676,1737222649967,-710.64,0.00022876,3]
[349497677,1737222649976,-500.0,0.00022876,3]
[349497678,1737222649985,-500.0,0.00022876,3]
[349497679,1737222649994,-2631.26,0.00022876,3]
[349497680,1737222650003,-5728.57,0.00022876,3]
[349497681,1737222650014,-500.0,0.00022876,3]
[349497682,1737222650024,-500.0,0.00022876,3]
[349497683,1737222650033,-500.0,0.00022876,3]
[349497684,1737222650042,-500.0,0.00022876,3]
[349497685,1737222650051,-1649.57,0.00022876,3]
[349497686,1737222650061,-500.0,0.00022876,3]
[349497687,1737222650070,-510.28,0.00022876,3]
[349497688,1737222650079,-795.62,0.00022876,3]
[349497689,1737222650089,-500.0,0.00022876,3]
[349497690,1737222650098,-1957.6866457,0.000229,3]
[349497691,1737222650107,-1957.68664569,0.00022969,3]
[349497692,1737222650116,-7438.69753278,0.00023,2]
[349497693,1737222650126,-7438.69753278,0.00023,3]
[349497694,1737222650135,-231.02,0.00023013,3]
[349497695,1737222650144,-500.0,0.00023013,3]
[349497696,1737222650154,-500.0,0.00023013,3]
[349497697,1737222650163,-500.0,0.00023013,2]
[349497698,1737222650172,-9507.15,0.00023013,3]
[349497699,1737222650181,-500.0,0.00023013,3]
[349497700,1737222650190,-500.0,0.00023013,3]
[349497701,1737222650199,-580.74,0.00023013,3]
[349497702,1737222650208,-500.0,0.00023013,3]
[349497703,1737222650218,-615.85,0.00023013,3]
[349497704,1737222650228,-500.0,0.00023013,3]
[349497705,1737222650237,-500.0,0.00023013,3]
[349497706,1737222650246,-500.0,0.00023013,3]
[349497707,1737222650255,-500.0,0.00023013,3]
[349497708,1737222650264,-500.0,0.00023013,3]
[349497709,1737222650273,-710.64,0.00023013,3]
[349497710,1737222650283,-500.0,0.00023013,3]
[349497711,1737222650293,-500.0,0.00023013,3]
[349497712,1737222650302,-2631.26,0.00023013,3]
[349497713,1737222650311,-5728.57,0.00023013,3]
[349497714,1737222650320,-500.0,0.00023013,3]
[349497715,1737222650329,-500.0,0.00023013,3]
[349497716,1737222650338,-500.0,0.00023013,3]
[349497717,1737222650347,-500.0,0.00023013,3]
[349497718,1737222650356,-1649.57,0.00023013,3]
[349497719,1737222650366,-500.0,0.00023013,3]
[349497720,1737222650375,-510.28,0.00023013,3]
[349497721,1737222650384,-795.62,0.00023013,3]
[349497722,1737222650393,-500.0,0.00023013,3]
[349497723,1737222650402,-600.0,0.00023036,2]
[349497724,1737222650413,-1957.68664569,0.00023038,3]
[349497725,1737222650423,-488.114,0.00023042,2]
[349497726,1737222650433,-395.0,0.00023042,2]
[349497727,1737222650443,-183.838,0.00023042,2]
[349497728,1737222650452,-11294.5531873,0.00023044,2]
[349497729,1737222650461,-1000.0,0.00023096,2]
[349497730,1737222650470,-500.0,0.00023098,2]
[349497731,1737222650480,-1957.68664569,0.00023107,3]
[349497732,1737222650491,-489.26,0.0002315,3]
[349497733,1737222650502,-500.0,0.0002315,3]
[349497734,1737222650513,-500.0,0.0002315,2]
[349497735,1737222650523,-9507.15,0.0002315,3]
[349497736,1737222650531,-500.0,0.0002315,3]
[349497737,1737222650541,-500.0,0.0002315,3]
[349497738,1737222650551,-580.74,0.0002315,3]
[349497739,1737222650561,-500.0,0.0002315,3]
[349497740,1737222650571,-615.85,0.0002315,3]
[349497741,1737222650586,-437.99939457,0.0002315,3]
[349497742,1737222650595,-500.0,0.0002315,3]
[349497743,1737222650604,-500.0,0.0002315,3]
[349497744,1737222650613,-500.0,0.0002315,3]
[349497745,1737222650623,-500.0,0.0002315,3]
[349497746,1737222650634,-710.64,0.0002315,3]
[349497747,1737222650644,-500.0,0.0002315,3]
[349497748,1737222650654,-500.0,0.0002315,3]
[349497749,1737222650664,-2631.26,0.0002315,3]
[349497750,1737222650673,-5728.57,0.0002315,3]
[349497751,1737222650683,-500.0,0.0002315,3]
[349497752,1737222650692,-500.0,0.0002315,3]
[349497753,1737222650701,-500.0,0.0002315,3]
[349497754,1737222650710,-500.0,0.0002315,3]
[349497755,1737222650719,-1649.57,0.0002315,3]
[349497756,1737222650730,-500.0,0.0002315,3]
[349497757,1737222650740,-510.28,0.0002315,3]
[349497758,1737222650751,-795.62,0.0002315,3]
[349497759,1737222650760,-500.0,0.0002315,3]
[349497760,1737222650769,-1957.68664569,0.00023176,3]
[349497761,1737222650778,-500.24873799,0.00023196,2]
[349497762,1737222650787,-160.17079239,0.00023196,2]
[349497763,1737222650796,-770.65,0.000232,2]
[349497764,1737222650806,-166.57856237,0.0002321,2]
[349497765,1737222650815,-1000.0,0.00023221,2]
[349497766,1737222650825,-507.98432222,0.00023221,2]
[349497767,1737222650833,-1000.0,0.00023221,2]
[349497768,1737222650842,-404.4149031,0.00023236,2]
[349497769,1737222650851,-1957.68664569,0.00023245,3]
[349497770,1737222650860,-1018.37117836,0.00023276,2]
[349497771,1737222650869,-500.0,0.00023287,3]
[349497772,1737222650878,-500.0,0.00023287,2]
[349497773,1737222650888,-9507.15,0.00023287,3]
[349497774,1737222650897,-500.0,0.00023287,3]
[349497775,1737222650907,-500.0,0.00023287,3]
[349497776,1737222650916,-580.74,0.00023287,3]
[349497777,1737222650925,-500.0,0.00023287,3]
[349497778,1737222650934,-615.85,0.00023287,3]
[349497779,1737222650943,-500.0,0.00023287,3]
[349497780,1737222650952,-500.0,0.00023287,3]
[349497781,1737222650961,-500.0,0.00023287,3]
[349497782,1737222650970,-500.0,0.00023287,3]
[349497783,1737222650979,-710.64,0.00023287,3]
[349497784,1737222650988,-500.0,0.00023287,3]
[349497785,1737222650997,-500.0,0.00023287,3]
[349497786,1737222651077,-5728.57,0.00023287,3]
[349497787,1737222651094,-2631.26,0.00023287,3]
[349497788,1737222651103,-596.14,0.00023287,3]
[349497789,1737222651112,-500.0,0.00023287,3]
[349497790,1737222651121,-324.28,0.00023287,3]
[349497791,1737222651130,-500.0,0.00023287,3]
[349497792,1737222651140,-1649.57,0.00023287,3]
[349497793,1737222651149,-500.0,0.00023287,3]
[349497794,1737222651158,-510.28,0.00023287,3]
[349497795,1737222651168,-795.62,0.00023287,3]
[349497796,1737222651177,-500.0,0.00023287,3]
[349497797,1737222651186,-11294.5531873,0.00023288,2]
[349497798,1737222651196,-1957.68664569,0.00023314,3]
[349497799,1737222651207,-1957.68664569,0.00023383,3]
[349497800,1737222651216,-417.28,0.00023414,3]
[349497801,1737222651226,-500.0,0.00023419,2]
[349497802,1737222651235,-500.0,0.00023424,3]
[349497803,1737222651244,-459.43,0.00023424,2]
[349497804,1737222651253,-9507.15,0.00023424,3]
[349497805,1737222651264,-384.67,0.00023424,3]
[349497806,1737222651273,-580.74,0.00023424,3]
[349497807,1737222651282,-500.0,0.00023424,3]
[349497808,1737222651291,-615.85,0.00023424,3]
[349497809,1737222651300,-500.0,0.00023424,3]
[349497810,1737222651310,-500.0,0.00023424,3]
[349497811,1737222651319,-500.0,0.00023424,3]
[349497812,1737222651328,-500.0,0.00023424,3]
[349497813,1737222651337,-710.64,0.00023424,3]
[349497814,1737222651347,-500.0,0.00023424,3]
[349497815,1737222651356,-500.0,0.00023424,3]
[349497816,1737222651366,-5728.57,0.00023424,3]
[349497817,1737222651375,-2631.26,0.00023424,3]
[349497818,1737222651384,-500.0,0.00023424,3]
[349497819,1737222651393,-500.0,0.00023424,3]
[349497820,1737222651402,-1649.57,0.00023424,3]
[349497821,1737222651411,-500.0,0.00023424,3]
[349497822,1737222651420,-510.28,0.00023424,3]
[349497823,1737222651430,-795.62,0.00023424,3]
[349497824,1737222651439,-500.0,0.00023424,3]
[349497825,1737222651450,-1957.68664569,0.00023452,3]
[349497826,1737222651461,-1957.68664569,0.00023521,3]
[349497827,1737222651471,-166.57856237,0.00023558,2]
[349497828,1737222651480,-9507.15,0.00023561,3]
[349497829,1737222651489,-580.74,0.00023561,3]
[349497830,1737222651500,-500.0,0.00023561,3]
[349497831,1737222651510,-615.85,0.00023561,3]
[349497832,1737222651519,-500.0,0.00023561,3]
[349497833,1737222651529,-500.0,0.00023561,3]
[349497834,1737222651539,-500.0,0.00023561,3]
[349497835,1737222651548,-500.0,0.00023561,3]
[349497836,1737222651557,-710.64,0.00023561,3]
[349497837,1737222651566,-500.0,0.00023561,3]
[349497838,1737222651578,-5728.57,0.00023561,3]
[349497839,1737222651588,-2631.26,0.00023561,3]
[349497840,1737222651598,-500.0,0.00023561,3]
[349497841,1737222651608,-1649.57,0.00023561,3]
[349497842,1737222651619,-500.0,0.00023561,3]
[349497843,1737222651630,-510.28,0.00023561,3]
[349497844,1737222651639,-795.62,0.00023561,3]
[349497845,1737222651648,-500.0,0.00023561,3]
[349497846,1737222651662,-66.7115398,0.0002359,3]
[349497847,1737222651745,-1890.97510589,0.0002359,3]
[349497848,1737222651756,-1957.68664569,0.00023659,3]
[349497849,1737222651766,-11294.5531873,0.00023683,2]
[349497850,1737222651775,-9507.15,0.00023698,3]
[349497851,1737222651785,-580.74,0.00023698,3]
[349497852,1737222651794,-500.0,0.00023698,3]
[349497853,1737222651804,-615.85,0.00023698,3]
[349497854,1737222651813,-500.0,0.00023698,3]
[349497855,1737222651822,-500.0,0.00023698,3]
[349497856,1737222651831,-500.0,0.00023698,3]
[349497857,1737222651840,-500.0,0.00023698,3]
[349497858,1737222651849,-710.64,0.00023698,3]
[349497859,1737222651860,-500.0,0.00023698,3]
[349497860,1737222651870,-5728.57,0.00023698,3]
[349497861,1737222651880,-2631.26,0.00023698,3]
[349497862,1737222651889,-500.0,0.00023698,3]
[349497863,1737222651899,-1649.57,0.00023698,3]
[349497864,1737222651910,-500.0,0.00023698,3]
[349497865,1737222651922,-510.28,0.00023698,3]
[349497866,1737222651932,-795.62,0.00023698,3]
[349497867,1737222651941,-500.0,0.00023698,3]
[349497868,1737222651952,-1957.68664569,0.00023728,3]
[349497869,1737222651962,-201.4008712,0.00023733,2]
[349497870,1737222651972,-151.0,0.00023756,2]
[349497871,1737222651981,-151.0,0.00023756,2]
[349497872,1737222651990,-151.0,0.00023756,2]
[349497873,1737222651999,-151.0,0.00023756,2]
[349497874,1737222652010,-151.0,0.00023756,2]
[349497875,1737222652019,-151.0,0.00023756,2]
[349497876,1737222652028,-151.0,0.00023756,2]
[349497877,1737222652038,-151.0,0.00023756,2]
[349497878,1737222652047,-151.0,0.00023756,2]
[349497879,1737222652056,-151.0,0.00023756,2]
[349497880,1737222652066,-151.0,0.00023756,2]
[349497881,1737222652075,-151.0,0.00023756,2]
[349497882,1737222652084,-151.0,0.00023756,2]
[349497883,1737222652093,-151.0,0.00023756,2]
[349497884,1737222652102,-151.0,0.00023756,2]
[349497885,1737222652111,-151.0,0.00023756,2]
[349497886,1737222652120,-151.0,0.00023756,2]
[349497887,1737222652129,-151.0,0.00023756,2]
[349497888,1737222652138,-151.0,0.00023756,2]
[349497889,1737222652147,-151.0,0.00023756,2]
[349497890,1737222652157,-288.0,0.00023756,2]
[349497891,1737222652166,-151.0,0.00023774,2]
[349497892,1737222652175,-151.0,0.00023774,2]
[349497893,1737222652183,-151.0,0.00023774,2]
[349497894,1737222652194,-151.0,0.00023774,2]
[349497895,1737222652203,-151.0,0.00023774,2]